Cogmind - Beta 15 @@@ ROGUE MODE // 2025.06.04 @ 23:21:15 Player: Jammed Result: Destroyed by S-43 Plague with Heavy Machine Gun Performance ------------- Evolutions (7) 3500 Regions Visited (27) 5400 Robots Destroyed (487) 2435 Value Destroyed (16475) 16475 Prototype IDs (54) 1080 Alien Tech Used (2) 400 Bonus (9910) 9910 TOTAL SCORE: 39200 Bonus ------- High Alert Combat Kills 1022 Follower Combat Kills 1584 Network Hubs Disabled 400 Registered with UFD 300 Met Optimus in HQ 500 Met Zhirov 300 Met Warlord at Base 500 MAIN.C Attacked Warlord 500 Warlord Defense Kills 872 Built Enhanced Grunts 300 A7 Reached Mainframe 300 Read Decrypted Archives 300 Used Core Reset Matrix 3000 Scanned by Researcher 500 Friendly Fire -468 Cogmind --------- Core Integrity 0/1300 Matter 190/300 Energy 86/100 System Corruption 0% Temperature Cool (0) Movement Core (50) Location -3/Quarantine Parts ------- > --- POWER (2) -------- (None) > --- PROPULSION (6) --- (None) > --- UTILITY (10) ----- Advanced Sensor Array Advanced Signal Interpreter > --- WEAPON (3) ------- (None) > --- INVENTORY (5) ---- Advanced Point Defense System Nova Cannon Hypervelocity Coil Gun Improved Remote Datajack DRS Beacon (Ready) Peak State ------------ > --- POWER ------------ Fusion Reactor Micro Antimatter Reactor > --- PROPULSION ------- Cooled Gravmag System Cooled Gravmag System Cooled Antigrav System Combat Linear Gravjet Combat Linear Gravjet Combat Linear Gravjet > --- UTILITY ---------- Advanced Cooling System Medium Storage Unit Spectral Analyzer Advanced Sensor Array Advanced Signal Interpreter Experimental Targeting Computer Experimental Core Analyzer Quantum Capacitor System Mapper > --- WEAPON ----------- Nova Cannon Helical Railgun Helical Railgun > --- INVENTORY -------- Improved Deuterium Engine Cooled Gravmag System Improved Matter Compressor Improved Phase Shifter Centrium Light Armor Plating A0-MCA's Component Scanner Scatter Rocket Array Improved Remote Datajack Vortex Lance DRS Beacon [Rating: 163] Favorites ----------- Power Light Nuclear Core Engine Improved Deuterium Engine Power Core Light Nuclear Core Reactor Quantum Reactor Propulsion Carbon-fiber Leg Treads Centrium Heavy Treads Leg Carbon-fiber Leg Wheel Wheel Hover Unit Combat Linear Gravjet Flight Unit Improved Flight Unit Utility Medium Storage Unit Device Seismic Detector Storage Medium Storage Unit Processor Improved Targeting Computer Hackware System Shield Protection Light Armor Plating Weapon Enhanced Autogun Energy Gun Spread Laser Energy Cannon Heavy Plasma Cannon Ballistic Gun Enhanced Autogun Ballistic Cannon Antimatter Cannon Launcher Advanced EMP Blaster Special Weapon Mining Laser Piercing Weapon Heavy Pick Build | -11 -10 -10 -9 -9 -9 -8 -8 -8 -8 -8 -6 -6 -6 -6 -6 -5 -5 -5 -5 -4 -4 -4 -4 -4 -3 -3 -3 ------- Run | Yrd Mat Min Mat Min Exi Min Mat Sto Rec Scr Fac Ext Cet Arc Hub Fac Upp Upp War Pro Fac Upp Upp Zhi Pro Res Qua Slots Evolved 14 | . . . 2 . . . 2 . . . 4 . . . . 2 . . . . 2 . . . . 2 . Power 1 | . . . . . . . . . . . . . . . . 1 . . . . . . . . . . . Propulsion 4 | . . . . . . . 1 . . . . . . . . 1 . . . . 1 . . . . 1 . Utility 8 | . . . 1 . . . 1 . . . 4 . . . . . . . . . 1 . . . . 1 . Weapon 1 | . . . 1 . . . . . . . . . . . . . . . . . . . . . . . . Parts Attached 298 | 1 12 4 29 3 . 1 22 13 . 5 9 12 10 . 9 70 6 5 33 1 18 7 1 5 . 19 3 Power 52 | . 2 1 3 3 . . 4 4 . . . 4 1 . 1 10 2 1 9 . 2 1 . 1 . 3 . Engine 15 | . 2 1 3 1 . . . 2 . . . 1 . . . 1 1 . 2 . . 1 . . . . . Core 25 | . . . . 2 . . 4 2 . . . 3 . . 1 9 1 1 2 . . . . . . . . Reactor 12 | . . . . . . . . . . . . . 1 . . . . . 5 . 2 . . 1 . 3 . Propulsion 63 | . 6 3 4 . . . 3 3 . 2 . 4 1 . . 22 1 . 4 . 6 . . 1 . 3 . Treads 1 | . . . . . . . . . . . . . 1 . . . . . . . . . . . . . . Leg 20 | . 6 3 3 . . . 3 2 . . . . . . . 3 . . . . . . . . . . . Wheel 5 | . . . . . . . . . . . . . . . . 5 . . . . . . . . . . . Hover 29 | . . . . . . . . . . . . . . . . 14 1 . 4 . 6 . . 1 . 3 . Flight 8 | . . . 1 . . . . 1 . 2 . 4 . . . . . . . . . . . . . . . Utility 93 | 1 . . 6 . . . 4 2 . 3 7 2 2 . 3 22 2 2 9 1 8 6 1 3 . 7 2 Device 43 | 1 . . 2 . . . 1 . . 2 3 1 . . 1 8 2 . 3 1 7 4 1 . . 5 1 Storage 10 | . . . 1 . . . . . . 1 . . . . . 3 . 2 . . 1 . . 2 . . . Processor 23 | . . . 3 . . . . . . . 4 . . . 2 7 . . 4 . . 1 . . . 1 1 Hackware 6 | . . . . . . . . . . . . 1 . . . 3 . . 1 . . 1 . . . . . Protection 11 | . . . . . . . 3 2 . . . . 2 . . 1 . . 1 . . . . 1 . 1 . Artifact . | . . . . . . . . . . . . . . . . . . . . . . . . . . . . Weapon 90 | . 4 . 16 . . 1 11 4 . . 2 2 6 . 5 16 1 2 11 . 2 . . . . 6 1 Energy Gun 7 | . . . 1 . . . 2 1 . . . . 1 . . . . . 2 . . . . . . . . Energy Cannon 10 | . . . . . . . 2 . . . . . . . . 1 . 2 . . 1 . . . . 3 1 Ballistic Gun 57 | . 3 . 14 . . 1 7 2 . . 1 2 3 . 4 9 1 . 6 . 1 . . . . 3 . Ballistic Cannon 7 | . . . . . . . . . . . . . . . . 6 . . 1 . . . . . . . . Launcher 4 | . . . 1 . . . . 1 . . . . . . 1 . . . 1 . . . . . . . . Special Weapon 3 | . 1 . . . . . . . . . . . 2 . . . . . . . . . . . . . . Impact Weapon . | . . . . . . . . . . . . . . . . . . . . . . . . . . . . Slashing Weapon . | . . . . . . . . . . . . . . . . . . . . . . . . . . . . Piercing Weapon 2 | . . . . . . . . . . . 1 . . . . . . . 1 . . . . . . . . Special Melee Weapon . | . . . . . . . . . . . . . . . . . . . . . . . . . . . . Unidentified Prototypes 43 | . . . 2 . . . 4 4 . . 1 . 4 . 1 4 . . 14 . 1 . . 5 . 1 2 Corrupted Parts 8 | . . . . . . . . . . . . . . . . . 1 2 3 1 1 . . . . . . System Corruption 37 | . . . . . . . . . . . . . . . . . 4 9 14 1 9 . . . . . . Parts Lost 101 | . 3 . 3 . . . 8 2 1 . . 3 2 . 9 24 7 4 6 1 3 . . . . 25 . Power 19 | . . . 1 . . . 1 1 . . . 1 1 . . 3 2 1 4 . . . . . . 4 . Propulsion 27 | . 1 . . . . . 1 . . . . 1 . . 1 15 1 . . . . . . . . 7 . Utility 25 | . . . . . . . 2 1 1 . . 1 . . 5 3 2 1 1 . 1 . . . . 7 . Weapon 30 | . 2 . 2 . . . 4 . . . . . 1 . 3 3 2 2 1 1 2 . . . . 7 . Highest Loss Streak 24 | . 2 . 1 . . . 4 1 1 . . 2 2 . 5 4 2 3 3 1 2 . . . . 24 . To Critical Strikes 2 | . . . . . . . . . . . . . . . . 1 1 . . . . . . . . . . Average Backups 8 | 6 7 8 8 10 10 9 9 9 10 8 6 6 6 7 6 8 6 7 8 8 8 8 9 9 9 8 3 Power . | 1 1 1 . . . . . . . . . . . . . . . . . . . . . . . . . Propulsion 1 | 4 4 4 2 3 3 3 3 3 3 1 . . 1 2 1 . . . . 1 1 2 2 2 2 . . Utility 2 | . . 1 1 3 3 2 3 5 5 4 3 3 2 3 2 1 1 1 2 3 3 3 4 4 4 4 1 Weapon 3 | 1 2 2 2 4 4 4 2 1 2 2 2 3 2 2 2 4 4 4 5 4 3 2 2 2 2 2 1 Tool/Special . | . . . . . . . . . . . . . . . . . . . . . . . . . . . . Unused Backups 49 | 6 8 1 6 . . 1 3 1 . 3 2 1 . . . 2 . . 1 1 4 . . 3 . 3 3 Power 1 | 1 . . . . . . . . . . . . . . . . . . . . . . . . . . . Propulsion 19 | 2 6 1 2 . . . 2 1 . . . . . . . . . . . . 3 . . 2 . . . Utility 18 | 1 . . 3 . . 1 1 . . 3 1 1 . . . 1 . . . 1 1 . . 1 . 2 1 Weapon 8 | 2 2 . 1 . . . . . . . 1 . . . . . . . . . . . . . . 1 1 Tool/Special 3 | . . . . . . . . . . . . . . . . 1 . . 1 . . . . . . . 1 Average Slot Usage (%) 93 | . 99 100 99 99 100 100 97 97 94 94 95 99 91 93 90 88 77 71 84 93 94 99 100 99 100 89 7 Engine 2 | . 14 14 10 7 . . . 2 . . . . . . . . 3 1 3 . . 4 5 5 5 . . Core 3 | . . . . 3 11 11 8 5 9 9 6 5 . . 1 8 1 5 2 . . . . . . . . Reactor 1 | . . . . . . . . . . . . . 5 6 4 . . . 3 5 6 5 5 5 5 7 . Leg 10 | . 27 28 21 22 22 22 25 27 27 13 . . . . . 3 . . . . . . . . . . . Hover 6 | . . . . . . . . . . . . . . . . 10 10 11 14 23 25 26 26 26 26 25 . Flight 3 | . . . . . . . . . . 13 19 19 7 6 6 . . . . . . . . . . . . Device 11 | . 13 14 11 11 11 11 9 9 9 13 19 14 6 6 8 11 10 11 8 5 12 14 15 14 15 15 2 Storage 7 | . 14 14 11 11 11 11 9 9 9 9 6 6 6 6 6 5 7 8 11 5 5 5 5 5 5 3 . Processor 14 | . . . 10 11 11 11 9 9 9 9 22 26 26 26 23 15 11 11 13 23 17 20 21 21 21 17 4 Hackware 3 | . . . . . . . . . . . . 4 6 6 6 8 11 6 7 5 5 5 5 5 5 3 . Protection 2 | . . . . . . . 7 8 4 . . . 4 6 4 . . . 1 5 4 . . . . 1 . Energy Cannon 1 | . . . . . . . . . . . . . . . . . . 7 8 . 1 5 5 5 4 3 . Ballistic Gun 18 | . 26 28 29 33 33 32 26 25 27 27 17 19 18 20 19 6 . 1 1 15 12 10 10 10 10 6 . Ballistic Cannon 1 | . . . . . . . . . . . . . . . . 9 15 3 . . . . . . . . . Peak Build Rating 163 | 7 7 11 23 24 24 24 33 34 32 36 56 57 88 88 92 82 78 71 137 133 152 140 138 142 140 163 25 Average Rating 61 | 6 6 7 17 23 24 23 28 30 31 33 50 52 82 88 85 63 69 66 87 130 140 136 137 138 139 141 12 On Entrance 62 | 6 7 7 11 23 24 24 24 31 32 31 36 55 57 88 88 20 76 71 69 131 125 139 138 138 139 139 8 Naked Turns . | . . . . . . . . . . . . . . . . . . . . . . . . . . . . Heaviest Build 69 | 13 15 15 27 27 25 25 35 28 28 25 25 24 50 50 51 53 49 46 54 53 69 65 65 65 61 64 12 Greatest Support 89 | 20 20 30 30 30 30 30 45 45 45 54 24 25 80 80 89 67 49 49 55 54 68 67 67 67 66 77 3 Greatest Overweight (x) 4 | . 1 . 1 . . . 1 . . . 1 1 3 . 3 4 2 1 1 . 1 . . . . 1 3 Average Overweight (x) . | . . . . . . . . . . . . . . . . . . . . . . . . . . . . Largest Inventory Capacity 10 | 8 8 8 10 10 10 10 10 10 10 10 8 8 8 8 8 10 10 10 10 10 10 10 10 10 10 10 5 Average Capacity 9 | 8 8 8 8 10 10 10 10 10 10 9 8 8 8 8 8 9 10 10 10 10 10 10 10 10 10 9 5 Most Carried 10 | 7 8 8 10 10 10 10 10 10 10 10 8 8 8 8 8 10 10 10 10 10 10 10 10 10 10 10 5 Average Carried 8 | 6 7 8 8 10 10 9 9 9 10 8 7 7 7 8 7 9 8 8 9 9 9 9 10 10 10 9 4 Final Capacity 10 | 8 8 8 10 10 10 10 10 10 10 8 8 8 8 8 8 10 10 10 10 10 10 10 10 10 10 5 5 Final Carried 10 | 7 8 8 10 10 10 10 10 10 10 8 8 7 8 8 8 10 7 10 10 10 9 10 10 10 10 5 5 Class Distribution -------------------- 22% | Scavenger-Gunner 17% | Gunner 16% | Commander-Gunner 9% | Scavenger-Scout 8% | Scavenger-Mutant 6% | Mutant 3% | Scavenger-Skirmisher Dominant Class ---------------- Mutant | -10/Materials Scavenger-Mutant | -10/Mines Gunner | -9/Materials Gunner | -9/Mines Gunner | -9/Exiles Gunner | -8/Mines Gunner | -8/Materials Scavenger-Gunner | -8/Storage Scavenger-Gunner | -8/Recycling Commander-Gunner | -8/Scraptown Commander-Gunner | -6/Factory Sprinter | -6/Extension Commander-Gunner | -6/Cetus Commander-Gunner | -6/Archives Scavenger-Gunner | -6/Hub_04(d) Scavenger-Gunner | -5/Factory Hacker-Gunner | -5/Upper Caves Scavenger-Mutant | -5/Upper Caves Scavenger-Mutant | -5/Warlord Scavenger-Gunner | -4/Proximity Caves Scavenger-Gunner | -4/Factory Scavenger-Gunner | -4/Upper Caves Scavenger-Scout | -4/Upper Caves Scavenger-Scout | -4/Zhirov Scavenger-Scout | -3/Proximity Caves Scavenger-Scout | -3/Research Mutant | -3/Quarantine Resources | -11 -10 -10 -9 -9 -9 -8 -8 -8 -8 -8 -6 -6 -6 -6 -6 -5 -5 -5 -5 -4 -4 -4 -4 -4 -3 -3 -3 ----------- Run | Yrd Mat Min Mat Min Exi Min Mat Sto Rec Scr Fac Ext Cet Arc Hub Fac Upp Upp War Pro Fac Upp Upp Zhi Pro Res Qua Matter Collected 16354 | 264 428 203 1255 184 . 352 1153 1188 384 76 646 1370 284 . 635 3355 733 361 499 395 997 290 343 360 102 497 . Remotely . | . . . . . . . . . . . . . . . . . . . . . . . . . . . . Salvage Created 20110 | 164 623 118 1914 261 . 310 1577 1441 644 . 812 1653 440 . 1484 3999 553 365 504 582 1247 57 72 211 80 999 . Parts 1039 | 17 44 4 133 18 . 23 96 84 41 . 39 75 20 . 88 162 19 14 23 25 53 1 1 3 1 55 . Haulers Intercepted 24 | . 1 . 6 . . . 4 6 . . . . . . 1 6 . . . . . . . . . . . Recyclers Shooed 16 | . 2 . 3 . . . 2 . 1 . . 2 . . . 5 . . . . 1 . . . . . . Parts Field Recycled . | . . . . . . . . . . . . . . . . . . . . . . . . . . . . Retrieved Matter . | . . . . . . . . . . . . . . . . . . . . . . . . . . . . Parts Self-Destructed 50 | . . . . . . . . . . . . . . . . . 14 3 . 23 . . 7 3 . . . Prevented 8 | . . . . . . . . . . . . . . . . . 5 . . 3 . . . . . . . Kills | -11 -10 -10 -9 -9 -9 -8 -8 -8 -8 -8 -6 -6 -6 -6 -6 -5 -5 -5 -5 -4 -4 -4 -4 -4 -3 -3 -3 ------- Run | Yrd Mat Min Mat Min Exi Min Mat Sto Rec Scr Fac Ext Cet Arc Hub Fac Upp Upp War Pro Fac Upp Upp Zhi Pro Res Qua Combat Hostiles Destroyed 335 | . 15 2 36 6 . 11 28 28 14 . 16 22 6 . 15 49 20 11 8 10 18 1 1 . 5 13 . Guns 237 | . 15 2 32 6 . 11 22 21 14 . 12 22 6 . 15 26 . 1 3 9 9 1 1 . . 9 . Cannons 38 | . . . . . . . 2 . . . . . . . . 16 10 1 3 1 1 . . . . 4 . AOE 57 | . . . 4 . . . 4 7 . . 4 . . . . 7 9 9 . . 8 . . . 5 . . Classes Destroyed 24 | 2 5 . 3 1 . . . 3 2 . . 1 . . . 1 1 1 2 2 . . . . . . . Worker 25 | . . . 5 . . 1 2 3 . . . . . . 9 2 . . . . 3 . . . . . . Builder 14 | . 1 . 2 . . . 1 1 1 . . 1 . . 4 2 . . . . . . . . . 1 . Tunneler 8 | 4 . 1 . . . . . . . . . . . . . 1 . . . . 2 . . . . . . Hauler 24 | . 1 . 6 . . . 4 6 . . . . . . 1 6 . . . . . . . . . . . Recycler 30 | 1 . . 3 . . 1 1 . . . 1 3 . . 1 15 . . . . 3 . . . . 1 . Minesweeper 1 | . . . . . . . . . . . . . . . . . 1 . . . . . . . . . . Mechanic 1 | . . . . . . . . 1 . . . . . . . . . . . . . . . . . . . Operator 10 | . . . 2 . . . 1 1 . . . 1 . . 3 2 . . . . . . . . . . . Drone 2 | . . . . . . . . . . . . . . . . . . . . 2 . . . . . . . Watcher 38 | . 3 . 5 . . . 5 2 . . 2 2 1 . 3 7 . . . . 4 . . . . 4 . Swarmer 116 | . 6 . 15 . . 9 11 6 . . 8 5 . . . 21 10 5 . . 8 . . . 5 7 . Saboteur 2 | . . . . . . . . . . . . . . . . . . . 2 . . . . . . . . Grunt 99 | . 9 2 11 5 . 2 9 13 4 . 2 6 5 . 3 9 8 5 . 2 2 . 1 . . 1 . Brawler 2 | . . . . . . . . . . . . . . . . 1 . . . 1 . . . . . . . Duelist 1 | . . . . 1 . . . . . . . . . . . . . . . . . . . . . . . Protector 9 | . . . . . . . . 1 4 . 1 . . . 1 . . . 2 . . . . . . . . Sentry 44 | . . . 10 . . . 8 6 3 . 1 7 . . 1 4 1 . . 1 2 . . . . . . Demolisher 2 | . . . . . . . . 2 . . . . . . . . . . . . . . . . . . . Specialist 2 | . . . . . . . . . . . . . . . . . . . 2 . . . . . . . . Hunter 19 | . . . . . . . . . 1 . . 3 . . 6 3 1 . 1 1 . . . . . 3 . Programmer 32 | . . . . . . . . . 2 . 4 . . . 3 11 . 1 . 2 6 1 . . . 2 . Behemoth 2 | . . . . . . . . . . . . 1 . . . . . . 1 . . . . . . . . Cetus Guard 1 | . . . . . . . . . . . . . 1 . . . . . . . . . . . . . . Lightning 1 | . . . . . . . . . . . . . . . 1 . . . . . . . . . . . . Samaritan 3 | . . . . . . . . . . . . . . . . . . 3 . . . . . . . . . Wasp 1 | . . . . . . . . . . . . . . . . . . . 1 . . . . . . . . Fireman 1 | . . . . . . . . . . . . . . . . . . . . 1 . . . . . . . Best Kill Streak 12 | 3 5 1 6 2 . 3 8 10 5 . 4 5 3 . 12 8 10 9 2 3 5 1 1 . 5 6 . Combat Bots Only 10 | . 5 1 4 2 . 3 7 9 4 . 4 3 3 . 3 5 10 9 2 3 5 1 1 . 5 5 . Max Kills in Single Turn 9 | 1 2 1 2 1 . 2 4 3 1 . 2 2 1 . 9 5 5 5 2 1 5 1 1 . 3 1 . Gunslinging 1 | . . . . . . 1 1 . . . . . . . . 1 . . 1 . . . . . . . . Exploded 5 | . . . 1 . . . 2 3 . . 2 . . . . 4 5 5 . . 5 . . . 3 . . Melee . | . . . . . . . . . . . . . . . . . . . . . . . . . . . . Uniques/NPCs Destroyed . | . . . . . . . . . . . . . . . . . . . . . . . . . . . . Combat | -11 -10 -10 -9 -9 -9 -8 -8 -8 -8 -8 -6 -6 -6 -6 -6 -5 -5 -5 -5 -4 -4 -4 -4 -4 -3 -3 -3 -------- Run | Yrd Mat Min Mat Min Exi Min Mat Sto Rec Scr Fac Ext Cet Arc Hub Fac Upp Upp War Pro Fac Upp Upp Zhi Pro Res Qua Hostile Shots Fired 1793 | . 92 6 121 15 . 37 121 67 25 . 42 149 12 . 133 261 68 18 67 29 129 10 1 . 6 379 5 Missed 654 | . 28 2 43 9 . 6 41 17 8 . 22 81 3 . 17 81 23 8 24 9 57 5 . . 2 167 1 Hits 1139 | . 64 4 78 6 . 31 80 50 17 . 20 68 9 . 116 180 45 10 43 20 72 5 1 . 4 212 4 Melee 1 | . . . . 1 . . . . . . . . . . . . . . . . . . . . . . . Projectile 1138 | . 64 4 78 5 . 31 80 50 17 . 20 68 9 . 116 180 45 10 43 20 72 5 1 . 4 212 4 AOE 7 | . . 2 . . . . . 4 . . . . . . . 1 . . . . . . . . . . . Critical Strikes 48 | . . . 1 1 . 1 5 3 2 . . 1 . . 5 10 3 2 . . 7 . . . . 7 . Part Disruptions 3 | . . . . . . . . . . . . . . . . . 2 1 . . . . . . . . . Damage Taken 21244 | . 642 155 847 89 . 380 1062 881 272 . 282 895 200 . 3133 3495 948 260 1127 404 1397 100 24 . 93 4531 27 Core 3431 | . 129 39 74 26 . 40 96 119 14 . 42 160 10 . 425 445 142 47 144 41 87 18 24 . . 1282 27 Absorbed by Shields 168 | . . . . . . . . . . . 15 . 41 . . . . . 93 . . . . . . 19 . Reduced by Siege Mode 211 | . . . . . . . . . . . . . . . 211 . . . . . . . . . . . . Regen/Repaired (Parts) 1574 | . 17 . . . . . 99 271 . . 212 . . . . . . . 158 . 618 . . . . 199 . Core Remaining (%) 55 | 100 . 32 . . . 65 . . . 58 . . . . 25 . . . . 18 . . . . 88 . . Volleys Fired 1176 | 9 80 8 110 12 . 27 90 80 32 . 30 99 15 . 59 178 33 16 40 31 63 4 42 11 18 86 3 Largest 3 | 2 2 2 3 3 . 3 3 3 3 . 3 3 3 . 3 3 3 3 3 3 3 3 2 1 1 3 1 Hottest 240 | 40 100 40 111 75 . 75 123 75 75 . 75 80 240 . 105 141 113 162 198 111 157 166 90 90 90 189 113 Shots Fired 2810 | 18 143 16 303 36 . 77 233 210 96 . 86 292 41 . 172 471 94 29 78 76 117 16 47 11 18 127 3 Gun 2265 | 18 126 16 296 36 . 75 216 201 96 . 84 291 38 . 172 319 1 5 29 73 93 12 11 . . 57 . Cannon 491 | . . . . . . . 15 . . . . . . . . 150 91 21 49 3 22 4 36 11 16 70 3 Launcher 34 | . . . 7 . . 2 2 9 . . 2 1 . . . 2 2 3 . . 2 . . . 2 . . Special 20 | . 17 . . . . . . . . . . . 3 . . . . . . . . . . . . . . Kinetic 2472 | 18 126 16 267 36 . 75 216 201 96 . 84 291 36 . 172 468 92 18 14 73 93 12 11 . . 57 . Thermal 232 | . 17 . 29 . . . 15 . . . . . 2 . . . . . 15 . 14 4 36 11 16 70 3 Explosive 27 | . . . 7 . . 2 2 5 . . . . . . . 2 2 3 . . 2 . . . 2 . . Electromagnetic 76 | . . . . . . . . 4 . . 2 1 . . . 1 . 8 49 3 8 . . . . . . Robot Hit Streak 31 | 7 10 4 14 4 . 7 10 12 12 . 9 17 5 . 26 19 7 8 11 7 31 10 9 20 2 29 30 Robot Miss Streak 11 | 4 7 2 5 2 . 3 5 8 2 . 3 3 2 . 3 10 11 7 2 5 4 . 1 . 3 1 . Penetration Max 2 | . . . . . . . . . . . . . 1 . 1 1 1 . 1 2 1 . . . . 2 . Secondary Targets 33 | . 1 1 6 1 . 3 3 4 . . . 4 . . 2 4 . . 1 1 2 . . . . . . Max Gunslinging Chain 1 | . 1 1 1 1 . 1 1 1 . . . 1 . . 1 1 . . 1 1 1 . . . . . . Shots Hit Robots 1709 | 10 71 10 191 19 . 46 140 113 66 . 54 170 19 . 124 317 55 19 59 42 81 10 9 11 1 71 1 Core Hits 935 | 5 31 6 109 9 . 17 67 76 25 . 33 82 11 . 66 156 35 41 21 24 59 2 5 2 11 42 . Critical Kills 13 | . . . 2 . . . . . 1 . . 1 1 . 6 2 . . . . . . . . . . . Critical Parts Destroyed 22 | . 1 . 2 . . 1 3 . . . . . . . 6 3 . . 1 2 1 . 1 . . 1 . Critical Strikes 47 | . 1 . 4 . . 1 3 . 1 . . 1 1 . 12 8 4 1 2 2 3 . 1 . . 2 . Destroy 38 | . 1 . 4 . . 1 3 . 1 . . 1 1 . 12 5 . . 2 2 2 . 1 . . 2 . Blast 8 | . . . . . . . . . . . . . . . . 3 4 1 . . . . . . . . . Corrupt 1 | . . . . . . . . . . . . . . . . . . . . . 1 . . . . . . Melee Attacks 34 | . . . . . . . . . . . 30 2 . . . . . . 1 1 . . . . . . . Impact . | . . . . . . . . . . . . . . . . . . . . . . . . . . . . Slashing . | . . . . . . . . . . . . . . . . . . . . . . . . . . . . Piercing 32 | . . . . . . . . . . . 30 2 . . . . . . . . . . . . . . . Entropic 2 | . . . . . . . . . . . . . . . . . . . 1 1 . . . . . . . Sneak Attacks 1 | . . . . . . . . . . . 1 . . . . . . . . . . . . . . . . Combat Hostiles . | . . . . . . . . . . . . . . . . . . . . . . . . . . . . Follow-up Attacks . | . . . . . . . . . . . . . . . . . . . . . . . . . . . . Damage Inflicted 46050 | 128 948 152 3107 325 . 795 2742 2916 1214 . 1245 3459 618 . 4013 9205 2607 1684 1765 1351 3709 370 266 437 448 2503 43 Guns 29772 | 128 946 152 2859 325 . 775 2322 1953 1214 . 1004 3413 618 . 2924 4989 . 63 496 1281 2404 250 266 . . 1390 . Cannons 9287 | . . . . . . . 100 . . . . . . . . 3400 2044 542 1156 70 306 120 . 437 . 1074 38 Explosions 6765 | . . . 245 . . 20 298 963 . . 141 4 . . 1089 803 563 1079 113 . 999 . . . 448 . . Melee 142 | . . . . . . . . . . . 100 42 . . . . . . . . . . . . . . . Ramming 84 | . 2 . 3 . . . 22 . . . . . . . . 13 . . . . . . . . . 39 5 Kinetic 34922 | 128 946 152 2491 325 . 775 2322 1953 1214 . 1004 3413 618 . 2924 8327 2044 316 379 1281 2404 250 266 . . 1390 . Thermal 2606 | . . . 368 . . . 100 . . . . . . . . 73 . . 230 . 166 120 . 437 . 1074 38 Explosive 5075 | . . . 245 . . 20 298 828 . . . . . . . 730 563 1079 . . 864 . . . 448 . . Electromagnetic 3221 | . . . . . . . . 135 . . 141 4 . . 1089 62 . 289 1156 70 275 . . . . . . Impact . | . . . . . . . . . . . . . . . . . . . . . . . . . . . . Slashing . | . . . . . . . . . . . . . . . . . . . . . . . . . . . . Piercing 142 | . . . . . . . . . . . 100 42 . . . . . . . . . . . . . . . Highest Corruption 23 | . . . . . . . . 1 2 . . 1 1 1 23 5 6 16 16 18 13 14 . . . 11 11 Average Corruption 4 | . . . . . . . . 1 1 . . 1 1 1 1 3 4 9 12 15 11 8 . . . 2 11 Corruption Purged 19 | . . . . . . . . . . . . . . . . 5 . . . . . 14 . . . . . Corruption Blocked . | . . . . . . . . . . . . . . . . . . . . . . . . . . . . Effects 316 | . . . . . . . . 5 10 . . 6 2 1 23 61 27 26 13 30 52 34 . . . 12 14 Message Errors 68 | . . . . . . . . 2 2 . . 2 . . 4 10 8 7 3 8 13 6 . . . 2 1 Matter Fused 67 | . . . . . . . . . 2 . . 1 1 . 8 10 6 8 2 3 9 7 . . . 4 6 Heat Flow Errors 43 | . . . . . . . . 1 2 . . 1 1 . 4 9 2 2 1 4 6 8 . . . 1 1 Energy Discharges 28 | . . . . . . . . 1 1 . . . . 1 2 6 1 6 . 2 2 2 . . . 2 2 Parts Rejected 8 | . . . . . . . . . . . . . . . 1 3 . . . 2 . . . . . 1 1 Parts Fused 3 | . . . . . . . . . . . . . . . . 3 . . . . . . . . . . . Data Loss (minor) 38 | . . . . . . . . . 1 . . 2 . . 2 9 6 2 . 4 7 2 . . . 2 1 Data Loss (major) 17 | . . . . . . . . . 1 . . . . . 1 2 2 1 . 3 1 4 . . . . 2 Misfires 13 | . . . . . . . . 1 . . . . . . . 2 2 . 1 . 3 4 . . . . . Alerts 3 | . . . . . . . . . 1 . . . . . . . . . 1 . . 1 . . . . . Misdirections 7 | . . . . . . . . . . . . . . . . . . . 3 1 3 . . . . . . Weapon Failures 21 | . . . . . . . . . . . . . . . 1 7 . . 2 3 8 . . . . . . Overload Shots 2 | . . . . . . . . . . . . . 2 . . . . . . . . . . . . . . Overflow Damage 675 | . . . 3 . . . . . . . 41 . . . 22 193 194 114 1 . 24 1 . . 19 63 . Projectiles 485 | . . . . . . . . . . . . . . . . 141 177 95 1 . 7 1 . . . 63 . Explosions 149 | . . . 3 . . . . . . . . . . . 22 52 17 19 . . 17 . . . 19 . . Melee 41 | . . . . . . . . . . . 41 . . . . . . . . . . . . . . . . Knockbacks 45 | . . . . . . . . . . . . . . . . 29 13 3 . . . . . . . . . Impact . | . . . . . . . . . . . . . . . . . . . . . . . . . . . . Kinetic 44 | . . . . . . . . . . . . . . . . 28 13 3 . . . . . . . . . Secondary 1 | . . . . . . . . . . . . . . . . 1 . . . . . . . . . . . Self-Inflicted Damage 492 | . . . . . . . 31 10 . . . . . . 125 144 56 86 . . 19 . . . . 19 2 Shots 14 | . . . . . . . 1 1 . . . . . . 2 2 3 4 . . 1 . . . . . . Rammed 9 | . . . . . . . . . . . . . . . . 2 . . . . . . . . . 3 4 Targets Rammed 15 | . 2 1 1 . . . 2 . . . . . . . . 2 . . . . . . . . . 3 4 Kicked 6 | . 2 1 1 . . . 2 . . . . . . . . . . . . . . . . . . . . Crushed . | . . . . . . . . . . . . . . . . . . . . . . . . . . . . Highest Temperature 408 | . 60 9 36 88 . 86 226 320 237 . 100 198 380 . 408 335 156 187 309 189 207 249 14 5 11 196 126 Average Temperature 58 | . 22 5 8 37 . 27 55 61 70 . 34 46 93 . 115 83 39 54 52 85 98 84 6 4 6 35 83 Received Heat Transfer 3019 | . 231 36 195 33 . 144 378 252 45 . 6 99 43 . 108 642 267 63 48 51 132 . . . . 246 . Effects 12 | . . . . . . . . . . . . . . . 5 7 . . . . . . . . . . . Shutdowns 4 | . . . . . . . . . . . . . . . 2 2 . . . . . . . . . . . Energy Bleed 2 | . . . . . . . . . . . . . . . 2 . . . . . . . . . . . . Interference 3 | . . . . . . . . . . . . . . . . 3 . . . . . . . . . . . Matter Decay 1 | . . . . . . . . . . . . . . . . 1 . . . . . . . . . . . Short Circuit 1 | . . . . . . . . . . . . . . . 1 . . . . . . . . . . . . Damage (minor) 1 | . . . . . . . . . . . . . . . . 1 . . . . . . . . . . . Siege Activations 14 | . . . . . . . . . . . . . 1 . 13 . . . . . . . . . . . . Total Turns 201 | . . . . . . . . . . . . . 4 . 197 . . . . . . . . . . . . Longest Duration 41 | . . . . . . . . . . . . . 4 . 41 . . . . . . . . . . . . Martial Activations . | . . . . . . . . . . . . . . . . . . . . . . . . . . . . Shielding Activations . | . . . . . . . . . . . . . . . . . . . . . . . . . . . . Robots Disrupted . | . . . . . . . . . . . . . . . . . . . . . . . . . . . . Combat Hostiles . | . . . . . . . . . . . . . . . . . . . . . . . . . . . . Robots Corrupted 5 | . . . . . . . . . . . . . . . 1 . . 1 2 . 1 . . . . . . Combat Hostiles 2 | . . . . . . . . . . . . . . . . . . . 2 . . . . . . . . Parts Fried 27 | . . . . . . . . . . . . . 2 . 10 . . 6 8 . 1 . . . . . . Impact Corruptions 2 | . . . . . . . . . . . . . . . . . 2 . . . . . . . . . . Robots Melted . | . . . . . . . . . . . . . . . . . . . . . . . . . . . . Combat Hostiles . | . . . . . . . . . . . . . . . . . . . . . . . . . . . . Parts Melted 7 | . . . . . . . . . . . . 1 . . . . 3 . . . . 2 . . . 1 . Heat Transferred 2788 | . . . 465 . . . 148 . . . . . . . . 50 . . 276 . 150 150 . 550 . 962 37 Parts Sabotaged . | . . . . . . . . . . . . . . . . . . . . . . . . . . . . Parts Stolen . | . . . . . . . . . . . . . . . . . . . . . . . . . . . . Parts Stripped . | . . . . . . . . . . . . . . . . . . . . . . . . . . . . Power Chain Reactions 4 | . . . . . . . . . . . 2 . . . 1 . . . 1 . . . . . . . . Alert | -11 -10 -10 -9 -9 -9 -8 -8 -8 -8 -8 -6 -6 -6 -6 -6 -5 -5 -5 -5 -4 -4 -4 -4 -4 -3 -3 -3 ------- Run | Yrd Mat Min Mat Min Exi Min Mat Sto Rec Scr Fac Ext Cet Arc Hub Fac Upp Upp War Pro Fac Upp Upp Zhi Pro Res Qua Maximum Alert Level 4 | . . . 2 . . . 2 2 1 . 1 1 1 2 2 4 . . . . 3 . . . . 2 1 Low Security (%) 51 | 100 100 100 47 100 . 100 10 8 64 . 79 67 47 87 93 15 . . . . . . . . . 50 . Level 1 23 | . . . 38 . . . 80 9 35 . 20 32 52 9 3 14 . . . . 20 . . . . 13 100 Level 2 19 | . . . 14 . . . 8 81 . . . . . 3 2 39 . . . . 61 . . . . 36 . Level 3 2 | . . . . . . . . . . . . . . . . 7 . . . . 18 . . . . . . Level 4 2 | . . . . . . . . . . . . . . . . 22 . . . . . . . . . . . Level 5 . | . . . . . . . . . . . . . . . . . . . . . . . . . . . . High Security . | . . . . . . . . . . . . . . . . . . . . . . . . . . . . Max Security . | . . . . . . . . . . . . . . . . . . . . . . . . . . . . Peak Influence 1305 | 10 125 59 463 159 . 198 422 653 277 . 238 360 336 426 437 1305 . . . . 935 . . . . 690 393 Initial 387 | . . 14 . 144 . . 61 146 194 . . 88 173 86 149 180 . . . . 240 . . . . . 387 Average 273 | 2 38 6 227 85 . 78 321 498 184 . 168 178 210 114 81 608 . . . . 568 . . . . 233 354 Influence Increases 15473 | 25 444 70 1170 221 . 425 945 1290 373 . 742 1092 488 390 929 2060 460 250 350 434 1528 90 80 10 110 1421 76 Destroy 0b10 Robot/C 7300 | . 300 40 720 140 . 280 560 720 200 . 300 680 200 180 280 980 400 220 160 180 360 20 20 . 100 260 . Destroy 0b10 Robot/NC 830 | 25 25 5 115 . . 15 70 75 25 . 20 35 5 5 110 175 5 . 10 10 60 . . 10 . 30 . Destroy Leader 1372 | . 68 10 182 30 . 50 138 186 . . 74 84 20 . 98 186 40 30 . 30 68 10 . . 10 58 . Allied During Kill 737 | . . . . 6 . 12 . 135 . . . 155 225 185 . . . . 15 4 . . . . . . . Successful Hack 573 | . 19 . 49 . . . 38 26 26 . 84 56 . . 33 15 . . . . 179 . . . . 32 16 Select Force Hacks 120 | . . . . . . . . . 120 . . . . . . . . . . . . . . . . . . Disable Machine 915 | . 15 . . 15 . . 60 105 . . 45 30 15 15 165 180 . . . . 210 . . . . 30 30 Destroy Structure 1031 | . 17 . 44 . . 8 34 28 2 . 24 7 8 5 228 284 . . . . 246 . . . . 96 . Advance Influence 150 | . . . . . . . . . . . . . . . . . . . . . 150 . . . . . . Partial Spotted 180 | . . . . . . . . . . . 15 30 . . . 60 . . . . . . . . . 75 . Lose Combat Pursuer 2265 | . . 15 60 30 . 60 45 15 . . 180 15 15 . 15 180 15 . 165 210 255 60 60 . . 840 30 Influence Decreases 15190 | 25 406 108 800 569 22 267 754 1140 795 77 560 964 583 179 986 1126 945 546 786 376 910 735 197 10 110 731 483 Entered New Map 3690 | . . 24 . 226 22 . 97 203 305 77 . 94 137 129 277 189 483 156 522 86 54 283 23 . . . 303 Time Decay 8980 | 25 376 84 620 323 . 241 577 607 470 . 530 490 326 30 619 697 392 350 164 276 526 452 174 10 110 331 180 Search Patrol Dispatched 150 | . . . . . . . . . . . . . . . . . . . . . . . . . . 150 . Lost Part 980 | . 30 . 30 . . . 80 20 10 . . 30 20 . 90 240 70 40 30 10 30 . . . . 250 . Lost Ally 640 | . . . . 20 . 26 . 160 10 . 30 200 100 20 . . . . 70 4 . . . . . . . Purge Threat 750 | . . . 150 . . . . 150 . . . 150 . . . . . . . . 300 . . . . . . Squads Dispatched 82 | . 4 . 1 . . . 4 7 . . 10 2 2 . 8 15 . . . . 13 . . . . 14 2 Investigation 27 | . 2 . . . . . 2 1 . . 4 . 2 . 1 5 . . . . 7 . . . . 3 . Extermination 19 | . . . . . . . . . . . 5 . . . 3 4 . . . . 3 . . . . 3 1 Reinforcement 27 | . 2 . 1 . . . 2 2 . . 1 2 . . 4 4 . . . . 2 . . . . 6 1 Assault 6 | . . . . . . . . 3 . . . . . . . 2 . . . . 1 . . . . . . Garrison 3 | . . . . . . . . 1 . . . . . . . . . . . . . . . . . 2 . Intercept . | . . . . . . . . . . . . . . . . . . . . . . . . . . . . Searches Triggered 1 | . . . . . . . . . . . . . . . . . . . . . . . . . . 1 . Construction Impeded 4 | . . . . . . . . . . . 1 . . . 1 1 . . . . . . . . . 1 . Haulers Reinforced 5 | . . . . . . . . . . . . . . . 1 2 . . . . 1 . . . . 1 . Active Scanning Responses . | . . . . . . . . . . . . . . . . . . . . . . . . . . . . Cargo Convoy Interrupts 1 | . . . . . . . . . . . . . . . . . . . . . . . . . . 1 . Stealth | -11 -10 -10 -9 -9 -9 -8 -8 -8 -8 -8 -6 -6 -6 -6 -6 -5 -5 -5 -5 -4 -4 -4 -4 -4 -3 -3 -3 --------- Run | Yrd Mat Min Mat Min Exi Min Mat Sto Rec Scr Fac Ext Cet Arc Hub Fac Upp Upp War Pro Fac Upp Upp Zhi Pro Res Qua Distress Signals 28 | . 1 . 4 . . . 4 3 1 . . 3 1 . 2 3 . . 1 . 2 . . . . 2 1 Communications Jammed . | . . . . . . . . . . . . . . . . . . . . . . . . . . . . Distress Signals . | . . . . . . . . . . . . . . . . . . . . . . . . . . . . Times Spotted 683 | . 24 6 46 9 . 19 39 47 15 . 25 42 13 . 20 74 21 14 80 22 46 5 6 . 5 95 10 Peak Tracking Total 24 | . 7 4 5 3 . 5 7 10 5 . 5 4 5 . 7 8 5 10 13 6 12 4 4 . 5 24 7 Tactical Retreats 68 | . . 1 2 1 . 2 2 1 . . 5 1 1 . 1 7 1 . 7 5 7 2 1 . . 20 1 Traps | -11 -10 -10 -9 -9 -9 -8 -8 -8 -8 -8 -6 -6 -6 -6 -6 -5 -5 -5 -5 -4 -4 -4 -4 -4 -3 -3 -3 ------- Run | Yrd Mat Min Mat Min Exi Min Mat Sto Rec Scr Fac Ext Cet Arc Hub Fac Upp Upp War Pro Fac Upp Upp Zhi Pro Res Qua Traps Triggered 27 | . 3 1 . . . . 3 1 . . 3 6 . . . 2 1 . . . 2 . . . . 5 . Indirectly . | . . . . . . . . . . . . . . . . . . . . . . . . . . . . Trap Hack Attempts . | . . . . . . . . . . . . . . . . . . . . . . . . . . . . Triggered . | . . . . . . . . . . . . . . . . . . . . . . . . . . . . Disarmed . | . . . . . . . . . . . . . . . . . . . . . . . . . . . . Reprogrammed . | . . . . . . . . . . . . . . . . . . . . . . . . . . . . Reused 3 | . . . . . . . . . . . . . . . . . 3 . . . . . . . . . . Traps Extracted . | . . . . . . . . . . . . . . . . . . . . . . . . . . . . Installed 10 | . . . . . . . . . . . . . . . . . 10 . . . . . . . . . . Triggered 3 | . . . . . . . . . . . . . . . . . 3 . . . . . . . . . . Most Traps Carried 3 | . . . . . . . . . . . . . . . . . 3 . . . . . . . . . . Machines | -11 -10 -10 -9 -9 -9 -8 -8 -8 -8 -8 -6 -6 -6 -6 -6 -5 -5 -5 -5 -4 -4 -4 -4 -4 -3 -3 -3 ---------- Run | Yrd Mat Min Mat Min Exi Min Mat Sto Rec Scr Fac Ext Cet Arc Hub Fac Upp Upp War Pro Fac Upp Upp Zhi Pro Res Qua Machines Disabled 64 | . 2 . . 1 . . 4 7 . . 3 2 1 1 11 12 . . 1 . 14 1 . . . 2 2 Max in Single Turn 5 | . 1 . . 1 . . 1 2 . . 1 1 1 . 5 4 . . 1 . 3 1 . . . 1 1 Garrison Access 7 | . . . . . . . 1 1 . . 1 . . . . 2 . . . . 1 . . . . 1 . Network Hub 2 | . . . . . . . . . . . . . . . 2 . . . . . . . . . . . . Machines Repaired . | . . . . . . . . . . . . . . . . . . . . . . . . . . . . Machines Dismantled . | . . . . . . . . . . . . . . . . . . . . . . . . . . . . Machines Sabotaged . | . . . . . . . . . . . . . . . . . . . . . . . . . . . . Overloaded Fab Kills . | . . . . . . . . . . . . . . . . . . . . . . . . . . . . Hacking | -11 -10 -10 -9 -9 -9 -8 -8 -8 -8 -8 -6 -6 -6 -6 -6 -5 -5 -5 -5 -4 -4 -4 -4 -4 -3 -3 -3 --------- Run | Yrd Mat Min Mat Min Exi Min Mat Sto Rec Scr Fac Ext Cet Arc Hub Fac Upp Upp War Pro Fac Upp Upp Zhi Pro Res Qua Machines Accessed 146 | . 6 2 12 . 2 . 11 12 10 2 13 15 3 1 5 9 . . 9 1 17 1 2 4 . 7 2 Terminals 78 | . 4 1 10 . . . 7 7 6 . 5 15 3 . 5 2 . . . 1 7 . . . . 3 2 Fabricators 3 | . . . . . . . . . . . 1 . . . . 1 . . . . 1 . . . . . . Repair Stations 10 | . 1 . . . . . 1 2 . . 2 . . . . . . . . . 3 . . . . 1 . Recycling Units 26 | . 1 . 2 . . . 2 2 4 . 4 . . . . 4 . . . . 5 . . . . 2 . Scanalyzers . | . . . . . . . . . . . . . . . . . . . . . . . . . . . . Garrison Access 7 | . . . . . . . 1 1 . . 1 . . . . 2 . . . . 1 . . . . 1 . Total Hacks 440 | . 21 4 39 . 6 . 33 31 29 6 26 23 9 25 12 39 . . 13 1 65 1 4 17 . 23 13 Successful 269 | . 10 1 19 . 6 . 17 24 15 6 19 16 . 25 4 20 . . 13 1 36 1 4 17 . 13 2 Failed 171 | . 11 3 20 . . . 16 7 14 . 7 7 9 . 8 19 . . . . 29 . . . . 10 11 Catastrophic 24 | . . . 1 . . . 1 1 1 . . 2 1 . 1 3 . . . . 5 . . . . 2 6 Database Lockouts . | . . . . . . . . . . . . . . . . . . . . . . . . . . . . Manual 178 | . 12 3 24 . . . 17 8 27 . 9 8 1 . 5 13 . . . . 34 . . . . 8 9 Terminals 237 | . 11 3 31 . . . 26 15 22 . 9 23 9 . 12 14 . . . 1 37 . . . . 11 13 Fabricators 8 | . . . . . . . . . . . 2 . . . . 2 . . . . 4 . . . . . . Repair Stations 39 | . 4 . . . . . 2 8 . . 6 . . . . . . . . . 14 . . . . 5 . Recycling Units 67 | . 6 . 8 . . . 4 7 7 . 8 . . . . 14 . . . . 8 . . . . 5 . Scanalyzers . | . . . . . . . . . . . . . . . . . . . . . . . . . . . . Garrison Access 16 | . . . . . . . 1 1 . . 1 . . . . 9 . . . . 2 . . . . 2 . Terminal Hacks 135 | . . 1 10 . 6 . 6 7 2 6 3 11 . 25 3 4 . . 13 1 11 1 4 17 . 3 1 Record 58 | . . . . . 6 . . . . 6 . . . 25 . . . . 12 1 . . 3 5 . . . Part Schematic 10 | . . . 1 . . . . . 2 . . . . . . 1 . . . . 2 . . 4 . . . Robot Schematic 2 | . . . . . . . . 2 . . . . . . . . . . . . . . . . . . . Robot Analysis 10 | . . . 1 . . . 3 . . . 1 . . . . . . . . . 1 . . 4 . . . Prototype ID Bank 4 | . . . . . . . . . . . . . . . . . . . . . . . . 4 . . . Open Door 19 | . . 1 . . . . . 4 . . 1 9 . . . . . . 1 . . 1 1 . . 1 . Level Access Points 1 | . . . . . . . . . . . . . . . . . . . . . 1 . . . . . . Branch Access Points 2 | . . . . . . . . . . . . . . . . 1 . . . . 1 . . . . . . Emergency Access Points 2 | . . . 1 . . . . . . . . . . . 1 . . . . . . . . . . . . Terminal Index 2 | . . . 1 . . . . . . . . . . . . . . . . . 1 . . . . . . Scanalyzer Index 1 | . . . . . . . . . . . . . . . . . . . . . 1 . . . . . . Alert Level 1 | . . . 1 . . . . . . . . . . . . . . . . . . . . . . . . Unreport Threat 5 | . . . 1 . . . . 1 . . . 1 . . . . . . . . 2 . . . . . . Locate Traps 3 | . . . 2 . . . . . . . 1 . . . . . . . . . . . . . . . . Dispatch Records 1 | . . . . . . . . . . . . 1 . . . . . . . . . . . . . . . Maintenance Status 1 | . . . . . . . . . . . . . . . 1 . . . . . . . . . . . . Patrol Status 1 | . . . . . . . . . . . . . . . . . . . . . . . . . . . 1 Recall Investigation 1 | . . . . . . . 1 . . . . . . . . . . . . . . . . . . . . Hauler Manifests 4 | . . . 1 . . . 1 . . . . . . . . 1 . . . . 1 . . . . . . Registered Components 3 | . . . . . . . 1 . . . . . . . . . . . . . 1 . . . . 1 . Zone Layout 4 | . . . 1 . . . . . . . . . . . 1 1 . . . . . . . . . 1 . Fabricator Hacks 4 | . . . . . . . . . . . 1 . . . . 1 . . . . 2 . . . . . . Network Status 2 | . . . . . . . . . . . 1 . . . . 1 . . . . . . . . . . . Load Schematic 1 | . . . . . . . . . . . . . . . . . . . . . 1 . . . . . . Build 1 | . . . . . . . . . . . . . . . . . . . . . 1 . . . . . . Repair Station Hacks 27 | . 2 . . . . . 2 8 . . 6 . . . . . . . . . 6 . . . . 3 . Scan Component 15 | . 1 . . . . . 1 4 . . 3 . . . . . . . . . 4 . . . . 2 . Repair 12 | . 1 . . . . . 1 4 . . 3 . . . . . . . . . 2 . . . . 1 . Recycling Unit Hacks 18 | . 1 . 1 . . . 1 3 2 . 1 . . . . 5 . . . . 2 . . . . 2 . Report Inventory 10 | . . . . . . . 1 2 2 . 1 . . . . 1 . . . . 2 . . . . 1 . Retrieve Components 8 | . 1 . 1 . . . . 1 . . . . . . . 4 . . . . . . . . . 1 . Scanalyzer . | . . . . . . . . . . . . . . . . . . . . . . . . . . . . Garrison Access Hacks 7 | . . . . . . . 1 1 . . 1 . . . . 2 . . . . 1 . . . . 1 . Seal Access 7 | . . . . . . . 1 1 . . 1 . . . . 2 . . . . 1 . . . . 1 . Unauthorized Hacks 78 | . 7 . 8 . . . 7 5 11 . 7 5 . . 1 8 . . . . 14 . . . . 4 1 Terminals 52 | . 5 . 6 . . . 7 3 7 . 3 5 . . 1 4 . . . . 8 . . . . 2 1 Track 1 | . . . . . . . . . . . . . . . . . . . . . . . . . . . 1 Assimilate 1 | . . . . . . . . . . . . . . . . . . . . . 1 . . . . . . Botnet 15 | . 1 . 1 . . . 2 2 2 . . 2 . . 1 2 . . . . 1 . . . . 1 . Operators 1 | . . . . . . . . . . . . . . . . . . . . . 1 . . . . . . Skim 34 | . 4 . 5 . . . 5 1 5 . 3 3 . . . 2 . . . . 5 . . . . 1 . Fabricators . | . . . . . . . . . . . . . . . . . . . . . . . . . . . . Repair Stations 1 | . . . . . . . . . . . . . . . . . . . . . 1 . . . . . . Patch 1 | . . . . . . . . . . . . . . . . . . . . . 1 . . . . . . Recycling Units 25 | . 2 . 2 . . . . 2 4 . 4 . . . . 4 . . . . 5 . . . . 2 . Reject 3 | . 1 . 1 . . . . 1 . . . . . . . . . . . . . . . . . . . Recyclers 1 | . . . . . . . . . . . . . . . . . . . . . 1 . . . . . . Mask 3 | . 1 . 1 . . . . 1 . . . . . . . . . . . . . . . . . . . Tunnel 4 | . . . . . . . . . 4 . . . . . . . . . . . . . . . . . . Fedlink 14 | . . . . . . . . . . . 4 . . . . 4 . . . . 4 . . . . 2 . Scanalyzers . | . . . . . . . . . . . . . . . . . . . . . . . . . . . . Garrison Access . | . . . . . . . . . . . . . . . . . . . . . . . . . . . . Data Cores Recovered 5 | . . . 1 . . . 1 1 . . . . . . 1 1 . . . . . . . . . . . Used 2 | . . . 1 . . . 1 . . . . . . . . . . . . . . . . . . . . Hacking Detections 86 | . 6 1 11 . . . 8 10 7 . 10 9 4 . 4 1 . . . . 9 . . . . 4 2 Full Trace Events 7 | . 1 . . . . . . . . . . . 2 . 1 . . . . . 2 . . . . 1 . Feedback Events . | . . . . . . . . . . . . . . . . . . . . . . . . . . . . Feedback Blocked . | . . . . . . . . . . . . . . . . . . . . . . . . . . . . Robot Schematics Acquired 2 | . . . . . . . . 2 . . . . . . . . . . . . . . . . . . . Robots Built . | . . . . . . . . . . . . . . . . . . . . . . . . . . . . Authchips . | . . . . . . . . . . . . . . . . . . . . . . . . . . . . Time . | . . . . . . . . . . . . . . . . . . . . . . . . . . . . Total Robot Build Rating . | . . . . . . . . . . . . . . . . . . . . . . . . . . . . Part Schematics Acquired 10 | . . . 1 . . . . . 2 . . . . . . 1 . . . . 2 . . 4 . . . Parts Built 2 | . . . . . . . . . . . . . . . . . . . . . 2 . . . . . . Authchips . | . . . . . . . . . . . . . . . . . . . . . . . . . . . . Time 47 | . . . . . . . . . . . . . . . . . . . . . 47 . . . . . . Total Part Build Rating 10 | . . . . . . . . . . . . . . . . . . . . . 10 . . . . . . Parts Repaired 12 | . 1 . . . . . 1 4 . . 3 . . . . . . . . . 2 . . . . 1 . Time 750 | . 26 . . . . . 38 218 . . 170 . . . . . . . . . 190 . . . . 108 . Parts Recycled . | . . . . . . . . . . . . . . . . . . . . . . . . . . . . Recycled Matter . | . . . . . . . . . . . . . . . . . . . . . . . . . . . . Retrieved Matter . | . . . . . . . . . . . . . . . . . . . . . . . . . . . . Retrieved Components 31 | . 2 . 5 . . . . 9 . . . . . . . 13 . . . . . . . . . 2 . Parts Scanalyzed . | . . . . . . . . . . . . . . . . . . . . . . . . . . . . Part Schematics Acquired . | . . . . . . . . . . . . . . . . . . . . . . . . . . . . Parts Damaged . | . . . . . . . . . . . . . . . . . . . . . . . . . . . . Bothacking | -11 -10 -10 -9 -9 -9 -8 -8 -8 -8 -8 -6 -6 -6 -6 -6 -5 -5 -5 -5 -4 -4 -4 -4 -4 -3 -3 -3 ------------ Run | Yrd Mat Min Mat Min Exi Min Mat Sto Rec Scr Fac Ext Cet Arc Hub Fac Upp Upp War Pro Fac Upp Upp Zhi Pro Res Qua Used RIF Installer . | . . . . . . . . . . . . . . . . . . . . . . . . . . . . Robots Hacked . | . . . . . . . . . . . . . . . . . . . . . . . . . . . . Non-combat . | . . . . . . . . . . . . . . . . . . . . . . . . . . . . Combat . | . . . . . . . . . . . . . . . . . . . . . . . . . . . . Robot Hacks Applied . | . . . . . . . . . . . . . . . . . . . . . . . . . . . . Relay Couplers Released . | . . . . . . . . . . . . . . . . . . . . . . . . . . . . Fabnet Peak Effective % . | . . . . . . . . . . . . . . . . . . . . . . . . . . . . Robots Rewired 31 | . . . . . 5 . . . 7 . . 13 . . . . . . 5 1 . . . . . . . Allies Hacked 1 | . . . . . . . . . . . 1 . . . . . . . . . . . . . . . . Hacks Repelled . | . . . . . . . . . . . . . . . . . . . . . . . . . . . . Allies | -11 -10 -10 -9 -9 -9 -8 -8 -8 -8 -8 -6 -6 -6 -6 -6 -5 -5 -5 -5 -4 -4 -4 -4 -4 -3 -3 -3 -------- Run | Yrd Mat Min Mat Min Exi Min Mat Sto Rec Scr Fac Ext Cet Arc Hub Fac Upp Upp War Pro Fac Upp Upp Zhi Pro Res Qua Total Allies 68 | . . . . 2 5 . . 12 7 . . 27 5 . . . . . 5 1 1 . 3 . . . . Largest Group 17 | . . . . 2 5 5 . 10 6 6 6 17 16 14 . . . . 5 1 1 . 3 . . . . Highest-Rated Group 917 | . . . . 45 53 53 . 173 115 116 116 616 917 801 . . . . 274 56 26 . 138 . . . . Highest-Rated Ally 159 | . . . . 31 21 21 . 31 27 27 27 159 159 159 . . . . 64 56 26 . 46 . . . . Total Orders 54 | . . . . . . 2 . 3 4 25 10 7 . . . . . . 3 . . . . . . . . STAY 18 | . . . . . . 1 . 1 1 3 5 4 . . . . . . 3 . . . . . . . . FOLLOW 25 | . . . . . . 1 . 2 1 13 5 3 . . . . . . . . . . . . . . . PICKUP 2 | . . . . . . . . . . 2 . . . . . . . . . . . . . . . . . COLLECT 9 | . . . . . . . . . 2 7 . . . . . . . . . . . . . . . . . Ally Attacks 287 | . . . . 9 . 14 . 64 . . . 97 46 38 . . . . 16 3 . . . . . . . Total Damage 5708 | . . . . 83 . 212 . 841 . . . 1595 1025 1299 . . . . 591 62 . . . . . . . Kills 44 | . . . . 1 . 4 . 10 . . . 13 4 9 . . . . 2 1 . . . . . . . Allies Corrupted . | . . . . . . . . . . . . . . . . . . . . . . . . . . . . Allies Melted 3 | . . . . . . . . 1 . . . . . . . . . . 2 . . . . . . . . Intel | -11 -10 -10 -9 -9 -9 -8 -8 -8 -8 -8 -6 -6 -6 -6 -6 -5 -5 -5 -5 -4 -4 -4 -4 -4 -3 -3 -3 ------- Run | Yrd Mat Min Mat Min Exi Min Mat Sto Rec Scr Fac Ext Cet Arc Hub Fac Upp Upp War Pro Fac Upp Upp Zhi Pro Res Qua Active Infowar (turns) 25838 | 55 1483 857 763 617 813 677 1665 1886 1190 1866 1564 1296 43 . 1995 2243 1 . 440 621 1476 1134 586 109 1096 1153 209 Optics 7058 | . . . . . . . . . . . . . . . . 443 . . 440 621 1476 1134 586 109 1096 1153 . Sensors 11082 | . . . . . . . . . . 925 1564 1296 43 . 1995 1800 1 . . . . 470 586 109 1096 988 209 Seismic 11377 | 55 1483 857 182 617 813 677 1665 1886 1190 941 . . . . . . . . . . 1011 . . . . . . T.N.C. 581 | . . . 581 . . . . . . . . . . . . . . . . . . . . . . . . Robot Analysis Total 10 | . . . 1 . . . 3 . . . 1 . . . . . . . . . 1 . . 4 . . . Derelict Logs Recovered 9 | . . 1 . 3 . . . . . . . . . . . . . 1 . 1 . 2 1 . . . . Drone Launches . | . . . . . . . . . . . . . . . . . . . . . . . . . . . . Drone Recoveries . | . . . . . . . . . . . . . . . . . . . . . . . . . . . . Exploration | -11 -10 -10 -9 -9 -9 -8 -8 -8 -8 -8 -6 -6 -6 -6 -6 -5 -5 -5 -5 -4 -4 -4 -4 -4 -3 -3 -3 ------------- Run | Yrd Mat Min Mat Min Exi Min Mat Sto Rec Scr Fac Ext Cet Arc Hub Fac Upp Upp War Pro Fac Upp Upp Zhi Pro Res Qua Turns Passed 32693 | 80 1509 857 2518 731 813 771 1769 1974 1190 1876 1796 1604 732 66 2091 2923 936 787 1069 621 1476 1134 586 109 1096 1213 366 Spaces Moved 28391 | 26 812 657 1648 528 644 514 1060 1041 700 1937 2546 2030 400 42 831 2202 1212 975 1114 799 1879 934 900 170 660 1817 313 Core 453 | . . . . . . . . . . . . 26 . . . . . . . . . . . . . 114 313 Treads 1192 | . . . . . . . . . . . . . 352 42 798 . . . . . . . . . . . . Legs 8657 | 26 812 657 1648 528 644 514 1060 1041 700 754 . . . . . 273 . . . . . . . . . . . Wheels 379 | . . . . . . . . . . . . . . . . 379 . . . . . . . . . . . Hover 11893 | . . . . . . . . . . . . . . . . 1547 1212 975 1114 799 1879 934 900 170 660 1703 . Flight 5817 | . . . . . . . . . . 1183 2546 2004 48 . 33 3 . . . . . . . . . . . Fastest Speed 32 | 120 120 120 120 120 120 120 120 120 120 34 34 32 34 160 120 48 56 56 44 44 42 46 46 42 42 35 50 Average Speed 74 | 120 120 120 120 120 120 120 120 120 120 67 34 33 148 160 159 86 59 62 52 44 45 46 46 44 42 38 61 Slowest Speed 280 | 120 190 120 190 120 120 120 190 120 120 120 107 107 280 160 280 280 160 110 111 44 126 46 46 46 42 100 200 Overloaded Moves . | . . . . . . . . . . . . . . . . . . . . . . . . . . . . Propulsion Burnouts . | . . . . . . . . . . . . . . . . . . . . . . . . . . . . Robots Hopped 35 | . . 4 . . . . . . . . 16 15 . . . . . . . . . . . . . . . Potential Cave-ins . | . . . . . . . . . . . . . . . . . . . . . . . . . . . . Cave-ins Triggered . | . . . . . . . . . . . . . . . . . . . . . . . . . . . . Exploration Rate (%) 74 | 4 99 98 97 98 90 94 89 92 99 92 38 87 72 63 56 40 92 78 87 82 37 86 94 63 75 60 27 Regions Visited 27 Branch Regions 20 Pre-discovered Areas 12 | . . 1 . 1 1 . . . 4 . 1 . . . . . . . . . . 1 . 3 . . . Known Exits Taken 21 | . . . . . . 1 1 1 1 1 1 1 1 1 1 1 1 1 1 1 1 1 1 1 1 1 . Unknown Exits Taken 6 | 1 1 1 1 1 1 . . . . . . . . . . . . . . . . . . . . . . Scrap Searched 27 | . . 1 . 2 . 3 . . . 6 . . . . . . 2 3 . 1 . 4 2 . 3 . . Spaces Dug 164 | . 14 . 16 . . 9 11 . . . 19 . . . . 11 . . . 1 41 . 10 . 8 24 . Terrain Destroyed 1282 | . 16 . 43 . . 9 41 35 . . 26 . 5 . 361 150 121 119 5 34 143 8 39 . 71 56 . Melee 20 | . . . . . . . . . . . 19 . . . . . . . . 1 . . . . . . . Projectile 344 | . 16 . . . . . 8 . . . . . 5 . 27 50 37 10 3 33 36 8 39 . 16 56 . AOE 918 | . . . 43 . . 9 33 35 . . 7 . . . 334 100 84 109 2 . 107 . . . 55 . . Terrain Rammed . | . . . . . . . . . . . . . . . . . . . . . . . . . . . . Walls Destroyed . | . . . . . . . . . . . . . . . . . . . . . . . . . . . . Machines Disabled . | . . . . . . . . . . . . . . . . . . . . . . . . . . . . Actions | -11 -10 -10 -9 -9 -9 -8 -8 -8 -8 -8 -6 -6 -6 -6 -6 -5 -5 -5 -5 -4 -4 -4 -4 -4 -3 -3 -3 --------- Run | Yrd Mat Min Mat Min Exi Min Mat Sto Rec Scr Fac Ext Cet Arc Hub Fac Upp Upp War Pro Fac Upp Upp Zhi Pro Res Qua Total 37905 | 56 1171 707 1981 604 684 625 1412 1681 1016 2511 3355 2828 507 41 1480 2860 1350 1120 1522 1002 2397 1627 1024 198 1456 2208 482 Wait 7069 | 20 240 37 136 59 8 72 189 516 207 546 703 506 72 . 566 325 62 116 232 158 383 668 79 . 777 247 145 Move 28298 | 25 811 648 1647 527 643 513 1059 1040 699 1936 2515 2001 399 41 830 2201 1211 974 1113 798 1878 933 899 169 659 1816 313 Hop 31 | . . 4 . . . . . . . . 14 13 . . . . . . . . . . . . . . . Pick Up 131 | 1 8 . 17 . . 4 12 2 . 11 4 4 . . 4 20 11 4 5 1 9 2 . 3 . 9 . Fast Attach 253 | 1 3 . 11 3 . . 14 14 . . 16 5 8 . 5 64 6 3 37 3 20 9 2 6 . 18 5 Attach 63 | . 2 . 5 . . . 7 . . 6 2 2 2 . 1 14 2 3 6 2 4 . . . . 3 2 Detach 18 | . . . 1 . . . . 1 . . 1 . 3 . . 2 . 2 3 2 1 . . . . . 2 Swap 158 | . 13 5 21 1 . 5 20 13 . . 15 12 2 . 6 9 2 1 2 2 18 2 . . 2 7 . Drop 293 | . 12 4 32 2 . 4 19 15 . 12 8 15 6 . 9 45 13 1 36 2 21 9 2 9 . 16 1 Fire 1176 | 9 80 8 110 12 . 27 90 80 32 . 30 99 15 . 59 178 33 16 40 31 63 4 42 11 18 86 3 Melee 34 | . . . . . . . . . . . 30 2 . . . . . . 1 1 . . . . . . . Ram 9 | . . . . . . . . . . . . . . . . 2 . . . . . . . . . 3 4 Kick 6 | . 2 1 1 . . . 2 . . . . . . . . . . . . . . . . . . . . Crush . | . . . . . . . . . . . . . . . . . . . . . . . . . . . . Escape Stasis 115 | . . . . . . . . . . . 17 88 . . . . . . . . . . . . . 3 7 Rewire 241 | . . . . . 33 . . . 78 . . 81 . . . . . . 47 2 . . . . . . . Trap 10 | . . . . . . . . . . . . . . . . . 10 . . . . . . . . . . Miscellaneous . | . . . . . . . . . . . . . . . . . . . . . . . . . . . . Route ------- -11/Scrapyard -10/Materials (discovered 6 exits: *Mat x3 / *Min x2 / [*Sub]) -10/Mines (discovered 3 exits: *Mat x2 / [*Sub]) -9/Materials (discovered 4 exits: *Mat x3 / [*Min]) -9/Mines (discovered 3 exits: *Mat x2 / *Exi) -9/Exiles (discovered 2 exits: [*Min x2]) -8/Mines (discovered 2 exits: *Mat x2) -8/Materials (discovered 5 exits: *Fac x3 / *Sto x2) -8/Storage (discovered 2 exits: *Fac / *Rec) -8/Recycling (discovered 2 exits: *Fac / *Scr) -8/Scraptown (discovered 2 exits: *Fac x2) -6/Factory (discovered 8 exits: *Fac x4 / Low x2 / *Ext x2) -6/Extension (discovered 2 exits: *Fac / *Cet) -6/Cetus -6/Archives -6/Hub_04(d) (discovered 2 exits: *Fac x2) -5/Factory (discovered 3 exits: *Fac / *Upp x2) -5/Upper Caves -5/Upper Caves (discovered 2 exits: *Fac / *War) -5/Warlord -4/Proximity Caves -4/Factory (discovered 6 exits: *Res x4 / *Upp x2) -4/Upper Caves -4/Upper Caves (discovered 2 exits: *Res / *Zhi) -4/Zhirov -3/Proximity Caves -3/Research (discovered 3 exits: *Res x2 / *Qua) -3/Quarantine History --------- Turn | Location | Event 14 | -11/Scrapyard | Discovered new exit (range 3) 81 | -11/Scrapyard | Entered Materials 316 | -10/Materials | Build established: Mutant 452 | -10/Materials | Discovered new exit (range 11) 488 | -10/Materials | Discovered new exit (range 10) 592 | -10/Materials | Discovered new exit (range 14) 634 | -10/Materials | Discovered new exit (range 4) 872 | -10/Materials | Discovered new exit (range 13) 1215 | -10/Materials | Discovered new exit (range 12) 1258 | -10/Materials | Build established: Scavenger-Mutant 1287 | -10/Materials | Repaired Seismic Detector 1499 | -10/Materials | Core integrity fell below 50% 1590 | -10/Materials | Entered Mines 1591 | -10/Mines | Assembled infested the area 1596 | -10/Mines | Assisted by a Guerilla fighting off Assembled 1622 | -10/Mines | Met a Derelict bent on vengeance 1633 | -10/Mines | Discovered new exit (range 15) 1652 | -10/Mines | Learned location of Zion (-6) 1807 | -10/Mines | Found a hidden stash of uninstalled traps 1857 | -10/Mines | Discovered new exit (range 6) 2110 | -10/Mines | Discovered new exit (range 10) 2233 | -10/Mines | Met a Derelict who couldn't figure out how to use a Trap Extractor 2447 | -10/Mines | Entered Materials 2447 | -9/Materials | Evolved 2 slots: Utility x1, Weapon x1 2745 | -9/Materials | Build established: Gunner 3088 | -9/Materials | Discovered new exit (range 13) 3328 | -9/Materials | Learned Storage emergency access door positions 3366 | -9/Materials | Discovered new exit (range 13) 3371 | -9/Materials | Learned location of 1 exit from Storage 3427 | -9/Materials | Learned location of 1 exit from Recycling 3441 | -9/Materials | Learned location of 1 exit from Recycling 3446 | -9/Materials | Learned Storage stockpile data 3447 | -9/Materials | Loaded intel: 14 trap records 3454 | -9/Materials | Identified exit to Materials 3454 | -9/Materials | Learned location of 1 exit from Materials 3495 | -9/Materials | Learned Storage trap positions 4005 | -9/Materials | Build established: Skirmisher 4539 | -9/Materials | Build established: Gunner 4965 | -9/Materials | Entered Mines 5108 | -9/Mines | Deemed a non-threat by the Exiles lab entrance 5109 | -9/Mines | Discovered new exit (range 5) 5202 | -9/Mines | Learned 4 Materials zone layouts 5272 | -9/Mines | Learned 2 Materials zone layouts 5385 | -9/Mines | Discovered exit to Materials (range 16) 5500 | -9/Mines | Discovered exit to Materials (range 7) 5696 | -9/Mines | Entered Exiles 5696 | -9/Exiles | Found Exiles lab destroyed 5696 | -9/Exiles | Accompanied by 1 ally 6211 | -9/Exiles | Discovered new exit (range 15) 6490 | -9/Exiles | Discovered new exit (range 11) 6494 | -9/Exiles | Build established: Commander-Gunner 6509 | -9/Exiles | Entered Mines 6509 | -8/Mines | Accompanied by 5 allies 6555 | -8/Mines | Discovered exit to Materials (range 11) 6607 | -8/Mines | Found a Scrap Suit stashed away for nefarious purposes 6658 | -8/Mines | Found Scrap Suit 6795 | -8/Mines | Lost 3 allies 7028 | -8/Mines | Discovered exit to Materials (range 14) 7078 | -8/Mines | Build established: Gunner 7280 | -8/Mines | Entered Materials 7280 | -8/Materials | Evolved 2 slots: Propulsion x1, Utility x1 7281 | -8/Materials | Identified exit to Storage 7282 | -8/Materials | Identified exit to Factory 7650 | -8/Materials | Destroyed 7 combat bots 7660 | -8/Materials | Lost 4 parts (1p1u2w) 7761 | -8/Materials | Repaired Carbon-fiber Leg 7823 | -8/Materials | Discovered exit to Factory (range 5) 7975 | -8/Materials | Discovered exit to Storage (range 4) 8021 | -8/Materials | Build established: Scavenger-Gunner 8038 | -8/Materials | Discovered exit to Factory (range 16) 8600 | -8/Materials | Build established: Gunner 9049 | -8/Materials | Entered Storage 9050 | -8/Storage | Identified exit to Recycling 9052 | -8/Storage | Loaded intel: 16 trap records 9367 | -8/Storage | Met a pair of Derelict thieves 9445 | -8/Storage | Destroyed 9 combat bots 10039 | -8/Storage | Assisted by bots powering up and referring to "LRC-V3" 10277 | -8/Storage | Garrison activated, responded to threat 10330 | -8/Storage | Build established: Commander-Gunner 10476 | -8/Storage | Repaired Enh. Autogun 10622 | -8/Storage | Lost 3 allies 10649 | -8/Storage | First assault squad dispatched 10809 | -8/Storage | Repaired Enh. Autogun 10848 | -8/Storage | Repaired Lgt. Nuclear Core 10909 | -8/Storage | Repaired Enh. Autogun 10980 | -8/Storage | Lost 5 allies 11021 | -8/Storage | Used back door to open Recycling access 11023 | -8/Storage | Entered Recycling 11024 | -8/Recycling | Identified exit to Factory 11024 | -8/Recycling | Identified exit to Scraptown 11220 | -8/Recycling | Build established: Scavenger-Gunner 11543 | -8/Recycling | Learned Factory security intel 11620 | -8/Recycling | Learned 12 Factory zone layouts 11664 | -8/Recycling | Learned 8 Factory zone layouts 11720 | -8/Recycling | Learned location of 3 exits from Factory 11788 | -8/Recycling | Learned 2 Lower Caves zone layouts 12018 | -8/Recycling | Build established: Commander-Gunner 12168 | -8/Recycling | Scanned before Scraplab entrance 12185 | -8/Recycling | Entered Scraplab 12213 | -8/Recycling | Entered Scraptown 12213 | -8/Scraptown | Accompanied by 6 allies 12213 | -8/Scraptown | System corruption cleaned by C-Scrubber 12351 | -8/Scraptown | Visited Fellowship of the Rings 12379 | -8/Scraptown | Visited Spacefarers 12434 | -8/Scraptown | Visited Red Mages 12471 | -8/Scraptown | Visited The Evicted 12501 | -8/Scraptown | Visited Symbiants 12525 | -8/Scraptown | Visited Shadow of the Wyrm 12544 | -8/Scraptown | Visited TADAMA 13195 | -8/Scraptown | Visited UFD Registry 13197 | -8/Scraptown | Registered with UFD as "Wireblaster" 13205 | -8/Scraptown | Visited Curators Association 13224 | -8/Scraptown | Visited Observation Area 13234 | -8/Scraptown | Visited Abandonware Association 13239 | -8/Scraptown | Learned abandonware demo "ERRANTS.EXE" 13239 | -8/Scraptown | Learned abandonware demo "MELTYB.EXE" 13248 | -8/Scraptown | Visited Junk Repository 13258 | -8/Scraptown | Visited A0-MCA Data Center 13263 | -8/Scraptown | Visited Scrapoid Pod Storage 13270 | -8/Scraptown | Visited DA-N13 Charitable Foundation 13271 | -8/Scraptown | Found DCF Scrap (29 items) 13279 | -8/Scraptown | Visited Derelict Rescue Squad 13281 | -8/Scraptown | Found DRS Beacon 13289 | -8/Scraptown | Visited Botcube Research 13351 | -8/Scraptown | Given an A- rating by A0-MCA 13355 | -8/Scraptown | Found Unknown Processor 13361 | -8/Scraptown | Visited Science Testing Area 14005 | -8/Scraptown | Met Optimus 14005 | -8/Scraptown | Accepted into 0bPrime 14089 | -8/Scraptown | Entered Factory 14089 | -6/Factory | Accompanied by 6 allies 14089 | -6/Factory | Evolved 4 slots: Utility x4 14090 | -6/Factory | Identified exit to Factory 14090 | -6/Factory | Identified exit to Lower Caves 14091 | -6/Factory | Identified exit to Extension 14176 | -6/Factory | Loaded intel: 8 recycling unit locations 14457 | -6/Factory | Learned location of Protoforge (-3) 14825 | -6/Factory | Build established: Commander-Mutant 14844 | -6/Factory | Spotted B-75 Beast 15173 | -6/Factory | Build established: Commander-Gunner 15223 | -6/Factory | Repaired Imp. Reaction Control System 15559 | -6/Factory | P-60 Hacker assimilated allied Savior 3c 15560 | -6/Factory | Lost 3 allies 15797 | -6/Factory | Repaired Enh. Autogun 15860 | -6/Factory | Repaired Enh. Autogun 15885 | -6/Factory | Entered Extension 15885 | -6/Extension | Accompanied by 2 allies 15904 | -6/Extension | Build established: Mutant 16207 | -6/Extension | Build established: Gunner 16310 | -6/Extension | Disrupted transfer network 16454 | -6/Extension | Rescued a captive Derelict 16455 | -6/Extension | Rescued a captive Derelict 16468 | -6/Extension | Rescued a captive Derelict 16469 | -6/Extension | Rescued a captive Derelict 16748 | -6/Extension | Spotted B-75 Beast 16769 | -6/Extension | Destroyed B-75 Beast 16785 | -6/Extension | Spotted B-75 Beast 16800 | -6/Extension | Allies destroyed B-75 Beast 16810 | -6/Extension | Lost 7 allies 16899 | -6/Extension | Rescued a captive Derelict 16900 | -6/Extension | Rescued a captive Derelict 16929 | -6/Extension | Rescued a captive Derelict 16929 | -6/Extension | Rescued a captive Derelict 16943 | -6/Extension | Rescued a captive Derelict 17040 | -6/Extension | Build established: Sprinter 17043 | -6/Extension | Lost 3 allies 17155 | -6/Extension | Rescued a captive Derelict 17164 | -6/Extension | Rescued a captive Derelict 17259 | -6/Extension | Rescued a captive Derelict 17260 | -6/Extension | Rescued a captive Derelict 17264 | -6/Extension | Rescued A7 17393 | -6/Extension | Discovered exit to Factory (range 10) 17393 | -6/Extension | Discovered new exit (range 6) 17486 | -6/Extension | Identified exit to Cetus 17489 | -6/Extension | Entered Cetus 17489 | -6/Cetus | Accompanied by 16 allies (A7) 17494 | -6/Cetus | Acquired a Cetus Manufacturing Module code from A7 17514 | -6/Cetus | Spotted Cetus Guard 17514 | -6/Cetus | Spotted Cetus Guard 17517 | -6/Cetus | Spotted Cetus Guard 17517 | -6/Cetus | Spotted Cetus Guard 17535 | -6/Cetus | Allies destroyed Cetus Guard 17541 | -6/Cetus | Destroyed Cetus Guard 17541 | -6/Cetus | Allies destroyed Cetus Guard 17543 | -6/Cetus | Allies destroyed Cetus Guard 17568 | -6/Cetus | Lost 5 allies 17633 | -6/Cetus | Started Cetus Manufacturing Module 17658 | -6/Cetus | Manufactured an Enhanced Grunt 17683 | -6/Cetus | Manufactured an Enhanced Grunt 17708 | -6/Cetus | Manufactured an Enhanced Grunt 17733 | -6/Cetus | Manufactured an Enhanced Grunt 17744 | -6/Cetus | Build established: Commander-Gunner 17758 | -6/Cetus | Manufactured an Enhanced Grunt 18039 | -6/Cetus | Escorted A7 to Cetus Mainframe 18172 | -6/Cetus | Discovered new exit (range 15) 18198 | -6/Cetus | Identified exit to Archives 18221 | -6/Cetus | Entered Archives 18221 | -6/Archives | Accompanied by 14 allies (A7) 18226 | -6/Archives | Received a hacking code to weaken MAIN.C 18241 | -6/Archives | Met Zhirov 18247 | -6/Archives | Reinforcements dispatched to Archives 18258 | -6/Archives | Read partially decrypted archive contents 18263 | -6/Archives | Discovered new exit (range 16) 18285 | -6/Archives | Identified exit to Hub_04(d) 18287 | -6/Archives | Entered Hub_04(d) 18592 | -6/Hub_04(d) | Build established: Scavenger-Gunner 18874 | -6/Hub_04(d) | Discovered exit to Factory (range 16) 19607 | -6/Hub_04(d) | Discovered exit to Factory (range 16) 19868 | -6/Hub_04(d) | Found Prototype Launcher 19869 | -6/Hub_04(d) | Identified Scatter Rocket Array 19993 | -6/Hub_04(d) | Build established: Scavenger-Tank 20236 | -6/Hub_04(d) | Network Hub disabled 20239 | -6/Hub_04(d) | Network Hub disabled 20255 | -6/Hub_04(d) | Spotted Lightning 20259 | -6/Hub_04(d) | Spotted Lightning 20259 | -6/Hub_04(d) | Spotted Lightning 20285 | -6/Hub_04(d) | System corruption reached 10% 20302 | -6/Hub_04(d) | Destroyed Lightning 20329 | -6/Hub_04(d) | Core integrity fell below 50% 20372 | -6/Hub_04(d) | Lost 5 parts (1n2u2w) 20378 | -6/Hub_04(d) | Entered Factory 20378 | -5/Factory | Evolved 2 slots: Power x1, Propulsion x1 20589 | -5/Factory | Discovered new exit (range 7) 20630 | -5/Factory | Identified exit to Factory 20706 | -5/Factory | Lost 3 parts (2n1u) 20967 | -5/Factory | Lost 4 parts (1p2n1w) 21001 | -5/Factory | Build established: Scavenger-Gunner 21652 | -5/Factory | Lost 4 parts (1p3n) 21900 | -5/Factory | Identified exit to Upper Caves 21947 | -5/Factory | Loaded intel: 8 recycling unit locations 22000 | -5/Factory | Build established: Scavenger-Skirmisher 22183 | -5/Factory | Lost 3 parts (3n) 22478 | -5/Factory | First assault squad dispatched 22721 | -5/Factory | Allied Derelicts emerged from ambush trap array 22814 | -5/Factory | Lost 3 allies 22983 | -5/Factory | Build established: Hacker-Skirmisher 23301 | -5/Factory | Entered Upper Caves 23333 | -5/Upper Caves | Destroyed 10 combat bots 23573 | -5/Upper Caves | Attracted the attention of an 0b10 checkpoint 23577 | -5/Upper Caves | Core integrity fell below 50% 23918 | -5/Upper Caves | Build established: Hacker-Gunner 24194 | -5/Upper Caves | Discovered new exit (range 10) 24214 | -5/Upper Caves | Identified exit to Upper Caves 24237 | -5/Upper Caves | Entered another Upper Caves area 24355 | -5/Upper Caves | Discovered exit to Factory (range 6) 24413 | -5/Upper Caves | Lost 3 parts (1p1u1w) 24418 | -5/Upper Caves | Destroyed 9 combat bots 24542 | -5/Upper Caves | Learned Factory stockpile data 24811 | -5/Upper Caves | System corruption reached 10% 24949 | -5/Upper Caves | Discovered new exit (range 10) 24954 | -5/Upper Caves | Identified exit to Warlord 24968 | -5/Upper Caves | Build established: Scavenger-Mutant 25024 | -5/Upper Caves | Entered Warlord 25045 | -5/Warlord | System corruption cleaned by Quarantine Array 25187 | -5/Warlord | Rebuked by Warlord 25212 | -5/Warlord | Warlord's base attacked by MAIN.C 25352 | -5/Warlord | Found Prototype Launcher 25352 | -5/Warlord | Identified Vortex Catalyst Activator 25354 | -5/Warlord | Found Prototype Piercing Weapon 25354 | -5/Warlord | Identified Vortex Lance 25398 | -5/Warlord | Found Prototype Device 25398 | -5/Warlord | Identified Minesniffer Drone Bay 25558 | -5/Warlord | Found Prototype Device 25558 | -5/Warlord | Identified Exp. Phase Shifter 25562 | -5/Warlord | Warlord forces counterattacked 25564 | -5/Warlord | Found Prototype Hackware 25564 | -5/Warlord | Identified System Mapper 25570 | -5/Warlord | Found Prototype Reactor 25570 | -5/Warlord | Identified Vortex Chain Reactor 25603 | -5/Warlord | P-70 Sage assimilated allied I2-5ZE(g) 25620 | -5/Warlord | Spotted Executioner 25640 | -5/Warlord | Spotted Striker 25648 | -5/Warlord | Spotted Executioner 25650 | -5/Warlord | Found Prototype Processor 25650 | -5/Warlord | Identified Exp. Targeting Computer 25651 | -5/Warlord | Lost 3 parts (2p1u) 25676 | -5/Warlord | Spotted Striker 25723 | -5/Warlord | Spotted B-86 Titan 25734 | -5/Warlord | Spotted Striker 25779 | -5/Warlord | Destroyed B-86 Titan 25788 | -5/Warlord | Spotted Executioner 25801 | -5/Warlord | Lost 28 allies 25848 | -5/Warlord | Build established: Hacker-Mutant 25887 | -5/Warlord | Warlord base infiltrated, sounded retreat 25920 | -5/Warlord | Spotted Executioner 25921 | -5/Warlord | Found Corrupted Prototype Ballistic Cannon 25921 | -5/Warlord | Identified Hvy. Autocannon 25934 | -5/Warlord | Spotted Striker 25964 | -5/Warlord | Lost 10 allies 26012 | -5/Warlord | Spotted Striker 26012 | -5/Warlord | Spotted Striker 26045 | -5/Warlord | Discovered new exit (range 12) 26045 | -5/Warlord | Spotted Executioner 26054 | -5/Warlord | Found Corrupted Prototype Processor 26054 | -5/Warlord | Identified Exp. Core Analyzer 26073 | -5/Warlord | Identified exit to Proximity Caves 26084 | -5/Warlord | Lost 8 allies 26093 | -5/Warlord | Entered Proximity Caves 26098 | -4/Proximity Caves | Spotter reported a threat 26204 | -4/Proximity Caves | Attracted the attention of an 0b10 checkpoint 26263 | -4/Proximity Caves | Build established: Scavenger-Gunner 26548 | -4/Proximity Caves | Core integrity fell below 20% 26674 | -4/Proximity Caves | Discovered exit to Factory (range 18) 26714 | -4/Proximity Caves | Entered Factory 26714 | -4/Factory | Evolved 2 slots: Propulsion x1, Utility x1 26785 | -4/Factory | Identified exit to Upper Caves 26785 | -4/Factory | Identified exit to Research 26817 | -4/Factory | Loaded intel: 8 recycling unit locations 26920 | -4/Factory | Fabricated Weapon Mount? 26989 | -4/Factory | Repaired Broken Helical Railgun 27046 | -4/Factory | System corruption reached 10% 27543 | -4/Factory | Repaired Helical Railgun 27714 | -4/Factory | First assault squad dispatched 27996 | -4/Factory | Learned Research stockpile data 28038 | -4/Factory | Learned Testing garrison access intel 28070 | -4/Factory | Loaded intel: 6 repair station locations 28093 | -4/Factory | Learned location of 1 exit from Proximity Caves 28190 | -4/Factory | Entered Upper Caves 28256 | -4/Upper Caves | Entered a destroyed Warlord outpost 28503 | -4/Upper Caves | Build established: Scavenger-Scout 28550 | -4/Upper Caves | Discovered new exit (range 16) 28637 | -4/Upper Caves | Learned location of 1 exit from Upper Caves 28956 | -4/Upper Caves | Build established: Scavenger-Gunner 29323 | -4/Upper Caves | Identified exit to Upper Caves 29324 | -4/Upper Caves | Entered another Upper Caves area 29324 | -4/Upper Caves | Discovered exit to Research (range 13) 29325 | -4/Upper Caves | Identified exit to Zhirov 29541 | -4/Upper Caves | Encountered a Warlord checkpoint 29586 | -4/Upper Caves | Build established: Scavenger-Scout 29671 | -4/Upper Caves | Attracted the attention of an 0b10 checkpoint 29800 | -4/Upper Caves | Learned Research emergency access door positions 29870 | -4/Upper Caves | Entered an active Warlord outpost 29873 | -4/Upper Caves | A Commander dispatched an escort 29874 | -4/Upper Caves | Learned Factory emergency access door positions 29874 | -4/Upper Caves | Learned Extension stockpile data 29910 | -4/Upper Caves | Entered Zhirov 29910 | -4/Zhirov | Accompanied by 3 allies 29910 | -4/Zhirov | Discovered new exit (range 3) 29911 | -4/Zhirov | Commander's escort returned to base 29911 | -4/Zhirov | Commander's escort returned to base 29911 | -4/Zhirov | Commander's escort returned to base 29928 | -4/Zhirov | Learned location of Quarantine (-3) 29928 | -4/Zhirov | Learned location of Command (-1) 30018 | -4/Zhirov | Identified exit to Proximity Caves 30019 | -4/Zhirov | Entered Proximity Caves 31066 | -3/Proximity Caves | Spotted B-86 Titan 31115 | -3/Proximity Caves | Entered Research 31115 | -3/Research | Evolved 2 slots: Propulsion x1, Utility x1 31116 | -3/Research | Identified exit to Research 31137 | -3/Research | Identified A0-MCA's Component Scanner 31149 | -3/Research | Found Prototype Processor 31158 | -3/Research | Identified Spectral Analyzer 31185 | -3/Research | Spotted B-86 Titan 31303 | -3/Research | Found Unknown Device 31303 | -3/Research | Identified Quantum Capacitor 31421 | -3/Research | Repaired Helical Railgun 31630 | -3/Research | Loaded intel: 5 recycling unit locations 31914 | -3/Research | Discovered exit to Research (range 16) 31931 | -3/Research | Found Prototype Device 31931 | -3/Research | Identified Exp. Thermal Shield 32047 | -3/Research | Spotted Executioner 32048 | -3/Research | Cargo convoy interrupted 32115 | -3/Research | Search patrols dispatched 32144 | -3/Research | Garrison activated, responded to threat 32261 | -3/Research | Core integrity fell below 50% 32278 | -3/Research | Core integrity fell below 20% 32301 | -3/Research | Lost 24 parts (4p7n7u6w) 32325 | -3/Research | Discovered new exit (range 8) 32327 | -3/Research | Identified exit to Quarantine 32328 | -3/Research | System corruption reached 10% 32328 | -3/Research | Entered Quarantine 32368 | -3/Quarantine | Found Alien Artifact 32368 | -3/Quarantine | Identified Terrabomb 32368 | -3/Quarantine | Used Terrabomb 32565 | -3/Quarantine | Build established: Mutant 32674 | -3/Quarantine | Scanned by Researcher 32691 | -3/Quarantine | Found Alien Artifact 32691 | -3/Quarantine | Identified Core Reset Matrix 32691 | -3/Quarantine | Used Core Reset Matrix 32694 | -3/Quarantine | Destroyed by S-43 Plague with Heavy Machine Gun Last Messages --------------- 32674_ C-55 Analyst calls for reinforcements. 32674_ ALERT: Hostile activity reported, dispatching reinforcements to area. 32674_ Held in stasis. 32674_ C-55 Analyst is analyzing... 32674_ ALERT: Encountered unknown unique technology, formulating response. 32679_ Held in stasis. 32679_ C-55 Analyst is analyzing... 32683_ Connecting with Terminal... >>Trojan(Track) Trojan loaded successfully. Testing... Tracking enabled and active. 32685_ System corrupted: Substantial component data lost. 32689_ Held in stasis. 32689_ C-55 Analyst is analyzing... 32691_ Acquired Alien Artifact. 32691_ Identified Core Reset Matrix. 32691_ Wiping memory... 32692_ CORE RESET Map ----- +----------------------------------------------------+ | ?????????????????????????????????????????????????? | | ?????????????????????????????????????????????????? | | ?????????????????????????????????????????????????? | | ?????????????????????????????????????????????????? | | ?????????????????????????????????????????????????? | | ?????????????????????????????????????????????????? | | ?????????????????????????????????????????????????? | | ?????????????????????????????????????????????????? | | ?????????????????????????????????????????????????? | | ?????????????????????????????????????????????????? | | ?????????????????????????????????????????????????? | | ?????????????????????????????????????????????????? | | ?????????????????????????????????????????????????? | | ?????????????????????????????????????????????????? | | ????????????R????????????????????????????????????? | | ?????????????????????????????????????????????????? | | ?????????????????????????????????????????????????? | | ?????????????????????????????????????????????????? | | ???????????????????c????###??????????????????????? | | ???????????????????????? ??????????????????????? | | ???????????????????????? ?????w????????????????? | | ??????????????k????????? s??????????????????????? | | ????????????k?????????###s###????????????????????? | | ??????????????????????# #????????????????????? | | ??????????????????????# #????????????????????? | | ??????????????????????#""@""#????????????????????? | | ??????????????????????#"""""#????????????????????? | | ??????????????????????#"""""#????????????????????? | | ??????????????????????#######????????????????????? | | ?????????????????????????????????????????????????? | | ?????????????????????????????????????????????????? | | ?????????????????????????????????????????????????? | | ?????????????????????????????????????????????????? | | ?????????????????????????????????????????????????? | | ?????????????????????????????????????????????????? | | ?????????????????????????????????????????????????? | | ?????????????????????????????????????????????????? | | ?????????????????????????????????????????????????? | | ?????????????????????????w???????????????????????? | | ?????????????????????????????????????????????????? | | ?????????????????????????????????????????????????? | | ?????????????????????????????????????????????????? | | ?????????????????????????????????????????????????? | | ?????????????????????????????????????????????????? | | ?????????????????????????????????????????????????? | | ?????????????????????????????????????????????????? | | ?????????????????????????????????????????????????? | | ?????????????????????????????????????????????????? | | ?????????????????????????????????????????????????? | | ?????????????????????????????????????????????????? | +----------------------------------------------------+ Best States ------------- Heat Dissipation 77 Energy Generation 45 Energy Capacity 725 Matter Stores 350 Matter Capacity 600 Sight Range 24 Robot Scan Range 16 Terrain Scan Density 10 Additional Mass Support 9 Armor Coverage 450 Weapon Cycling 20 Phase Shifting 20 Evasion (%) 73 Targeting Accuracy 32 Target Analysis 9 Core Analysis 8 Recoil Reduction 6 Matter Filtering 50 Offensive Hacking 20 Defensive Hacking 20 Item Schematics ----------------- None Robot Schematics ------------------ None Fabricated ------------ Weapon Mount | x2 | -4/Factory Repaired ---------- Seismic Detector | 15% | -10/Materials Carbon-fiber Leg | 10% | -8/Materials Enh. Autogun | 33% | -8/Storage Enh. Autogun | 38% | -8/Storage Lgt. Nuclear Core | 50% | -8/Storage Enh. Autogun | 75% | -8/Storage Imp. Reaction Control System | 27% | -6/Factory Enh. Autogun | 38% | -6/Factory Enh. Autogun | 46% | -6/Factory Helical Railgun | 11% | -4/Factory | Broken Helical Railgun | 4% | -4/Factory Helical Railgun | 9% | -3/Research Alien Tech Used ----------------- Terrabomb Core Reset Matrix Achievements -------------- None Challenges ------------ None Game ------ Seed UtilityIonTorch Manual? 0 Play Time 05:21:31 Cumulative 273.3 hours Start 2025.06.04 @ 07:13:41 End 2025.06.04 @ 23:21:15 Sessions 3 Manual Loads 0 Difficulty Rogue Special Mode None Game No. 176 Rogue 176 Adventurer 0 Explorer 0 Win Type - Total 2 Types 1/0/0/1/0/0/0/0/0/0 Lore% 80 Gallery% 64 Achievement% 62 Wizard Run 0 Options --------- Layout 0 ASCII 0 Keyboard 0 Movement Mouse Keybinds 0 Fullscreen 1 Font 18/SmallcapsGlow Map View 76x50 Zoom Use 0% Tactical HUD 1 Map Filters NONE Filters NONE Steam 1 RUN: a33c342a-c15e-419e-bd65-58546805bfb5